fUST/lending_fUST_20250127
["ID","MTS","AMOUNT","RATE_DAILY","PERIOD"]
[350553174,1737960568800,-500.0,0.00018684,2]
[350553175,1737960568826,-511.47,0.00018684,2]
[350553176,1737960568848,-633.07123253,0.00018684,2]
[350553177,1737960568871,-500.0,0.00018684,2]
[350553178,1737960568896,-1071.49,0.00018684,2]
[350553179,1737960568918,-500.0,0.00018684,2]
[350553180,1737960568941,-500.0,0.00018684,2]
[350553181,1737960568964,-500.0,0.00018684,2]
[350553182,1737960568993,-500.0,0.00018684,2]
[350553183,1737960569021,-500.0,0.00018684,2]
[350553184,1737960569043,-500.0,0.00018684,2]
[350553185,1737960569066,-500.0,0.00018684,2]
[350553186,1737960569091,-500.0,0.00018684,2]
[350553187,1737960569115,-500.0,0.00018684,2]
[350553188,1737960569142,-500.0,0.00018684,2]
[350553189,1737960569163,-500.0,0.00018684,2]
[350553190,1737960569187,-500.0,0.00018684,2]
[350553191,1737960569209,-579.34,0.00018684,2]
[350553192,1737960569230,-500.0,0.00018684,2]
[350553193,1737960569250,-500.0,0.00018684,2]
[350553194,1737960569270,-500.0,0.00018684,2]
[350553195,1737960569290,-500.0,0.00018684,2]
[350553196,1737960569311,-500.0,0.00018684,2]
[350553197,1737960569334,-500.0,0.00018684,2]
[350553198,1737960569461,-500.0,0.00018684,2]
[350553199,1737960569486,-500.0,0.00018684,2]
[350553200,1737960569510,-500.0,0.00018684,2]
[350553201,1737960569532,-500.0,0.00018684,2]
[350553202,1737960569554,-500.0,0.00018685,2]
[350553203,1737960569577,-500.0,0.00018685,2]
[350553204,1737960569598,-500.0,0.00018685,2]
[350553205,1737960569619,-500.0,0.00018685,2]
[350553206,1737960569640,-500.0,0.00018685,2]
[350553207,1737960569661,-500.0,0.00018685,2]
[350553208,1737960569682,-500.0,0.00018685,2]
[350553209,1737960569703,-500.0,0.00018685,2]
[350553210,1737960569724,-500.0,0.00018685,2]
[350553211,1737960569744,-500.0,0.00018685,2]
[350553212,1737960569767,-1214.83,0.00018685,2]
[350553213,1737960569788,-500.0,0.00018685,2]
[350553214,1737960569811,-4996.77,0.00018685,2]
[350553215,1737960569834,-500.0,0.00018685,2]
[350553216,1737960569856,-500.0,0.00018685,2]
[350553217,1737960569881,-1633.9,0.00018685,2]
[350553218,1737960569905,-500.0,0.00018685,2]
[350553219,1737960569927,-500.0,0.00018685,2]
[350553220,1737960569950,-500.0,0.00018685,2]
[350553221,1737960569972,-500.0,0.00018685,2]
[350553222,1737960569996,-500.0,0.0001882,2]
[350553223,1737960570021,-500.0,0.00018821,2]
[350553224,1737960570044,-500.0,0.00018821,2]
[350553225,1737960570066,-500.0,0.00018821,2]
[350553226,1737960570089,-500.0,0.00018821,2]
[350553227,1737960570109,-500.0,0.00018821,2]
[350553228,1737960570133,-511.47,0.00018821,2]
[350553229,1737960570156,-500.0,0.00018821,2]
[350553230,1737960570180,-1071.49,0.00018821,2]
[350553231,1737960570202,-500.0,0.00018821,2]
[350553232,1737960570225,-500.0,0.00018821,2]
[350553233,1737960570245,-500.0,0.00018821,2]
[350553234,1737960570269,-500.0,0.00018821,2]
[350553235,1737960570292,-500.0,0.00018821,2]
[350553236,1737960570316,-500.0,0.00018821,2]
[350553237,1737960570342,-500.0,0.00018821,2]
[350553238,1737960570365,-500.0,0.00018821,2]
[350553239,1737960570389,-500.0,0.00018821,2]
[350553240,1737960570413,-500.0,0.00018821,2]
[350553241,1737960570435,-500.0,0.00018821,2]
[350553242,1737960570457,-500.0,0.00018821,2]
[350553243,1737960570480,-579.34,0.00018821,2]
[350553244,1737960570501,-500.0,0.00018821,2]
[350553245,1737960570523,-500.0,0.00018821,2]
[350553246,1737960570544,-500.0,0.00018821,2]
[350553247,1737960570565,-500.0,0.00018821,2]
[350553248,1737960570589,-500.0,0.00018821,2]
[350553249,1737960570612,-569.84,0.00018822,2]
[350553250,1737960570635,-118.05687568,0.00018822,2]
[350553251,1737960572095,-500.0,0.00018547,2]
[350553252,1737960572126,-500.0,0.00018548,2]
[350553253,1737960572159,-500.0,0.00018684,2]
[350553254,1737960572183,-627.46,0.00018685,2]
[350553255,1737960572209,-381.94312432,0.00018822,2]
[350553256,1737960572237,-500.0,0.00018822,2]
[350553257,1737960572265,-500.0,0.00018822,2]
[350553258,1737960572292,-500.0,0.00018822,2]
[350553259,1737960572320,-500.0,0.00018822,2]
[350553260,1737960572350,-500.0,0.00018822,2]
[350553261,1737960572378,-500.0,0.00018822,2]
[350553262,1737960572402,-500.0,0.00018822,2]
[350553263,1737960572427,-500.0,0.00018822,2]
[350553264,1737960572456,-1214.83,0.00018822,2]
[350553265,1737960572486,-500.0,0.00018822,2]
[350553266,1737960572512,-634.80214371,0.00018822,2]
[350553267,1737960574159,-503.0781216,0.0001841,2]
[350553268,1737960574186,-500.0,0.00018411,2]
[350553269,1737960574212,-500.0,0.00018548,2]
[350553270,1737960574240,-2320.74067807,0.00018822,2]
[350553377,1737960632932,-746.24,0.00017764,2]
[350553380,1737960632943,-813.305675,0.00017764,2]
[350553382,1737960632953,-500.0,0.00018409,2]
[350553384,1737960632962,-500.0,0.00018409,2]
[350553386,1737960632971,-500.0,0.00018409,2]
[350553388,1737960632980,-500.0,0.0001841,2]
[350553390,1737960632989,-204.64337309,0.0001841,2]
[350553392,1737960632998,-450.77209167,0.0001841,2]
[350553394,1737960633010,-49.22790833,0.0001841,2]
[350553396,1737960633019,-272.01901657,0.0001841,2]
[350553398,1737960633031,-227.98098343,0.0001841,2]
[350553400,1737960633041,-300.0,0.0001841,2]
[350553402,1737960633050,-500.0,0.0001841,2]
[350553404,1737960633060,-500.0,0.0001841,2]
[350553406,1737960633069,-465.01901657,0.0001841,2]
[350553408,1737960633080,-34.98098343,0.0001841,2]
[350553410,1737960633090,-500.0,0.0001841,2]
[350553412,1737960633100,-1012.36,0.0001841,2]
[350553414,1737960633109,-500.0,0.0001841,2]
[350553417,1737960633122,-500.0,0.0001841,2]
[350553420,1737960633132,-500.0,0.00018411,2]
[350553422,1737960633142,-500.0,0.00018411,2]
[350553424,1737960633152,-500.0,0.00018411,2]
[350553426,1737960633165,-500.0,0.00018411,2]
[350553428,1737960633175,-500.0,0.00018411,2]
[350553430,1737960633185,-500.0,0.00018546,2]
[350553432,1737960633195,-500.0,0.00018546,2]
[350553434,1737960633205,-500.0,0.00018547,2]
[350553435,1737960633216,-500.0,0.00018547,2]
[350553436,1737960633226,-500.0,0.00018547,2]
[350553437,1737960633236,-500.0,0.00018547,2]
[350553438,1737960633247,-500.0,0.00018547,2]
[350553439,1737960633257,-500.0,0.00018547,2]
[350553441,1737960633266,-248.90024272,0.00018547,2]
[350553443,1737960633279,-763.45975728,0.00018547,2]
[350553445,1737960633290,-204.59,0.00018547,2]
[350553447,1737960633299,-500.0,0.00018548,2]
[350553449,1737960633309,-249.36540535,0.00018548,2]
[350553451,1737960633319,-170.83409052,0.00018585,2]
[350553453,1737960633329,-297.68,0.00018683,2]
[350553455,1737960633339,-500.0,0.00018683,2]
[350553457,1737960633348,-500.0,0.00018683,2]
[350553459,1737960633359,-500.0,0.00018684,2]
[350553461,1737960633372,-500.0,0.00018684,2]
[350553463,1737960633382,-173.98,0.00018684,2]
[350553465,1737960633392,-500.0,0.00018684,2]
[350553467,1737960633402,-1012.36,0.00018684,2]
[350553469,1737960633412,-500.0,0.00018685,2]
[350553471,1737960633423,-500.0,0.00018685,2]
[350553473,1737960633434,-500.0,0.0001882,2]
[350553475,1737960633444,-500.0,0.00018821,2]
[350553477,1737960633453,-500.0,0.00018821,2]
[350553479,1737960633463,-1012.36,0.00018821,2]
[350553481,1737960633473,-288.86371753,0.00018821,2]
[350553483,1737960633483,-2041.22717822,0.00018822,2]
[350553485,1737960633493,-500.0,0.00018822,2]
[350553487,1737960633502,-500.0,0.00018822,2]
[350553489,1737960633511,-1633.9,0.00018822,2]
[350553491,1737960633521,-500.0,0.00018822,2]
[350553493,1737960633530,-500.0,0.00018822,2]
[350553495,1737960633540,-500.0,0.00018822,2]
[350553497,1737960633549,-500.0,0.00018822,2]
[350553499,1737960633559,-452.2,0.00018822,2]
[350553501,1737960633568,-500.0,0.00018822,2]
[350553503,1737960633578,-500.0,0.00018957,2]
[350553505,1737960633587,-500.0,0.00018957,2]
[350553507,1737960633597,-464.6,0.00018958,2]
[350553509,1737960633606,-511.47,0.00018958,2]
[350553512,1737960633618,-1071.49,0.00018958,2]
[350553514,1737960633628,-500.0,0.00018958,2]
[350553516,1737960633637,-500.0,0.00018958,2]
[350553518,1737960633646,-500.0,0.00018958,2]
[350553519,1737960633657,-500.0,0.00018958,2]
[350553524,1737960633784,-500.0,0.00018958,2]
[350553525,1737960633795,-500.0,0.00018958,2]
[350553526,1737960633805,-500.0,0.00018958,2]
[350553527,1737960633815,-500.0,0.00018958,2]
[350553528,1737960633824,-579.34,0.00018958,2]
[350553529,1737960633833,-500.0,0.00018958,2]
[350553530,1737960633843,-500.0,0.00018958,2]
[350553531,1737960633852,-567.64,0.00018958,2]
[350553532,1737960633862,-500.0,0.00018958,2]
[350553533,1737960633873,-333.67,0.00018958,2]
[350553534,1737960633882,-500.0,0.00018958,2]
[350553535,1737960633892,-1012.36,0.00018958,2]
[350553536,1737960633902,-322.6,0.00018959,2]
[350553537,1737960633911,-500.0,0.00018959,2]
[350553538,1737960633920,-500.0,0.00018959,2]
[350553539,1737960633930,-500.0,0.00018959,2]
[350553540,1737960633939,-500.0,0.00018959,2]
[350553541,1737960633948,-500.0,0.00018959,2]
[350553542,1737960633958,-500.0,0.00018959,2]
[350553543,1737960633967,-4996.77,0.00018959,2]
[350553544,1737960633976,-500.0,0.00018959,2]
[350553545,1737960633985,-500.0,0.00018959,2]
[350553546,1737960633995,-1633.9,0.00018959,2]
[350553547,1737960634005,-500.0,0.00018959,2]
[350553548,1737960634014,-500.0,0.00018959,2]
[350553549,1737960634023,-500.0,0.00018959,2]
[350553550,1737960634033,-500.0,0.00018959,2]
[350553551,1737960634042,-500.0,0.00018959,2]
[350553552,1737960634050,-532.85795348,0.00019,2]
[350553553,1737960634060,-500.0,0.00019094,2]
[350553554,1737960634069,-586.98,0.00019094,2]
[350553555,1737960634078,-511.47,0.00019095,2]
[350553556,1737960634087,-1071.49,0.00019095,2]
[350553557,1737960634097,-500.0,0.00019095,2]
[350553558,1737960634107,-500.0,0.00019095,2]
[350553559,1737960634116,-500.0,0.00019095,2]
[350553560,1737960634128,-500.0,0.00019095,2]
[350553561,1737960634138,-243.18322385,0.00019095,2]
[350553562,1737960634149,-500.0,0.00019095,2]
[350553563,1737960634161,-500.0,0.00019095,2]
[350553564,1737960634171,-500.0,0.00019095,2]
[350553565,1737960634180,-579.34,0.00019095,2]
[350553566,1737960634191,-500.0,0.00019095,2]
[350553567,1737960634200,-500.0,0.00019095,2]
[350553568,1737960634210,-607.14,0.00019095,2]
[350553569,1737960634220,-500.0,0.00019095,2]
[350553570,1737960634229,-1012.36,0.00019095,2]
[350553571,1737960634239,-500.0,0.00019096,2]
[350553572,1737960634249,-320.95,0.00019096,2]
[350553573,1737960634260,-500.0,0.00019096,2]
[350553574,1737960634269,-230.72,0.00019096,2]
[350553575,1737960634279,-500.0,0.00019096,2]
[350553576,1737960634288,-550.96,0.00019096,2]
[350553577,1737960634298,-4996.77,0.00019096,2]
[350553578,1737960634308,-500.0,0.00019096,2]
[350553579,1737960634318,-500.0,0.00019096,2]
[350553580,1737960634328,-1633.9,0.00019096,2]
[350553581,1737960634339,-500.0,0.00019096,2]
[350553582,1737960634349,-500.0,0.00019096,2]
[350553583,1737960634359,-500.0,0.00019096,2]
[350553584,1737960634370,-500.0,0.00019096,2]
[350553585,1737960634380,-500.0,0.00019096,2]
[350553586,1737960634390,-500.0,0.00019231,2]
[350553587,1737960634399,-511.47,0.00019232,2]
[350553588,1737960634408,-1071.49,0.00019232,2]
[350553589,1737960634417,-500.0,0.00019232,2]
[350553590,1737960634427,-500.0,0.00019232,2]
[350553591,1737960634437,-500.0,0.00019232,2]
[350553592,1737960634446,-500.0,0.00019232,2]
[350553593,1737960634457,-500.0,0.00019232,2]
[350553594,1737960634466,-500.0,0.00019232,2]
[350553595,1737960634476,-500.0,0.00019232,2]
[350553596,1737960634485,-579.34,0.00019232,2]
[350553597,1737960634495,-500.0,0.00019232,2]
[350553598,1737960634504,-582.93567642,0.00019232,2]
[350553599,1737960634514,-500.0,0.00019232,2]
[350553600,1737960634523,-1012.36,0.00019232,2]
[350553601,1737960634533,-150.68,0.00019233,2]
[350553602,1737960634542,-500.0,0.00019233,2]
[350553603,1737960634551,-445.65,0.00019233,2]
[350553604,1737960634561,-500.0,0.00019233,2]
[350553605,1737960634571,-4996.77,0.00019233,2]
[350553606,1737960634580,-500.0,0.00019233,2]
[350553607,1737960634590,-446.00225521,0.00019233,2]
[350553608,1737960634599,-1633.9,0.00019233,2]
[350553609,1737960634613,-284.01,0.00019233,2]
[350553610,1737960634627,-407.88,0.00019233,2]
[350553611,1737960634636,-500.0,0.00019233,2]
[350553612,1737960634645,-500.0,0.00019233,2]
[350553613,1737960634654,-500.0,0.00019233,2]
[350553614,1737960634663,-802.31,0.00019359,3]
[350553615,1737960634672,-500.0,0.00019368,2]
[350553616,1737960634682,-511.47,0.00019369,2]
[350553617,1737960634691,-1071.49,0.00019369,2]
[350553618,1737960634700,-500.0,0.00019369,2]
[350553619,1737960634709,-500.0,0.00019369,2]
[350553620,1737960634719,-500.0,0.00019369,2]
[350553621,1737960634729,-500.0,0.00019369,2]
[350553622,1737960634739,-500.0,0.00019369,2]
[350553623,1737960634748,-274.7816012,0.00019369,2]
[350553624,1737960634757,-500.0,0.00019369,2]
[350553625,1737960634767,-579.34,0.00019369,2]
[350553626,1737960634776,-500.0,0.00019369,2]
[350553627,1737960634785,-500.0,0.00019369,2]
[350553628,1737960634795,-1012.36,0.00019369,2]
[350553629,1737960634804,-500.0,0.0001937,2]
[350553630,1737960634814,-500.0,0.0001937,2]
[350553631,1737960634823,-3652.97914094,0.0001937,2]
[350553632,1737960634904,-1343.79085906,0.0001937,2]
[350553633,1737960634914,-500.0,0.0001937,2]
[350553634,1737960634923,-25.24318059,0.0001937,2]
[350553635,1737960634934,-1608.65681941,0.0001937,2]
[350553636,1737960634944,-500.0,0.0001937,2]
[350553637,1737960634953,-169.67300785,0.0001937,2]
[350553638,1737960634963,-500.0,0.0001937,2]
[350553639,1737960634972,-194.1863234,0.00019458,2]
[350553640,1737960634981,-585.63,0.00019468,2]
[350553641,1737960634991,-500.0,0.00019468,2]
[350553642,1737960635001,-500.0,0.00019468,2]
[350553643,1737960635010,-500.0,0.00019468,2]
[350553644,1737960635020,-500.0,0.00019468,7]
[350553645,1737960635031,-500.0,0.00019468,2]
[350553646,1737960635040,-500.0,0.00019468,2]
[350553647,1737960635050,-500.0,0.00019468,2]
[350553648,1737960635059,-527.95,0.00019468,2]
[350553649,1737960635068,-350.6986335,0.00019468,2]
[350553650,1737960635078,-500.0,0.00019468,2]
[350553651,1737960635087,-500.0,0.00019468,2]
[350553652,1737960635096,-500.0,0.00019468,2]
[350553653,1737960635106,-500.0,0.00019468,2]
[350553654,1737960635115,-294.47227272,0.00019468,2]
[350553655,1737960635127,-500.0,0.00019468,2]
[350553656,1737960635136,-500.0,0.00019468,2]
[350553657,1737960635145,-500.0,0.00019468,2]
[350553658,1737960635160,-500.0,0.00019468,2]
[350553659,1737960635170,-500.0,0.00019468,2]
[350553660,1737960635179,-500.0,0.00019468,2]
[350553661,1737960635188,-500.0,0.00019468,2]
[350553662,1737960635199,-502.18085956,0.00019468,2]
[350553663,1737960635208,-500.0,0.00019468,2]
[350553664,1737960635218,-526.83760785,0.00019468,2]
[350553665,1737960635227,-500.0,0.00019468,2]
[350553666,1737960635238,-500.0,0.00019468,2]
[350553667,1737960635247,-501.81817746,0.00019468,2]
[350553668,1737960635257,-421.90342415,0.0001947,2]
[350553710,1737960638367,-2400.0,0.0001578,2]
[350553712,1737960638379,-2400.0,0.0001715,2]
[350553714,1737960638388,-2400.0,0.00018246,2]
[350553716,1737960638397,-500.0,0.00018409,2]
[350553718,1737960638407,-500.0,0.00018546,2]
[350553720,1737960638416,-500.0,0.00018683,2]
[350553722,1737960638425,-500.0,0.0001882,2]
[350553724,1737960638435,-500.0,0.00018957,2]
[350553726,1737960638444,-500.0,0.00019094,2]
[350553728,1737960638454,-500.0,0.00019231,2]
[350553730,1737960638464,-500.0,0.00019368,2]
[350553732,1737960638473,-78.09657585,0.0001947,2]
[350553734,1737960638483,-500.0,0.0001947,2]
[350553737,1737960638492,-503.87955486,0.0001947,2]
[350553739,1737960638502,-502.22259886,0.0001947,2]
[350553740,1737960638511,-500.0,0.0001947,2]
[350553743,1737960638520,-500.0,0.0001947,2]
[350553745,1737960638530,-500.0,0.0001947,2]
[350553747,1737960638539,-500.0,0.0001947,2]
[350553749,1737960638549,-500.0,0.0001947,2]
[350553751,1737960638558,-500.0,0.0001947,2]
[350553753,1737960638567,-500.0,0.00019505,2]
[350553755,1737960638577,-1071.49,0.00019506,2]
[350553757,1737960638586,-500.0,0.00019506,2]
[350553759,1737960638595,-500.0,0.00019506,2]
[350553762,1737960638605,-500.0,0.00019506,2]
[350553765,1737960638614,-599.67,0.00019506,2]
[350553767,1737960638625,-500.0,0.00019506,2]
[350553770,1737960638634,-500.0,0.00019506,2]
[350553772,1737960638643,-579.34,0.00019506,2]
[350553774,1737960638652,-258.1980792,0.00019506,2]
[350553776,1737960638662,-500.0,0.00019506,2]
[350553778,1737960638671,-1012.36,0.00019506,2]
[350553780,1737960638680,-369.74354755,0.00019507,2]
[350553782,1737960638689,-500.0,0.00019507,2]
[350553784,1737960638698,-4996.77,0.00019507,2]
[350553786,1737960638707,-500.0,0.00019507,2]
[350553788,1737960638715,-1633.9,0.00019507,2]
[350553790,1737960638724,-500.0,0.00019507,2]
[350553792,1737960638733,-500.0,0.00019507,2]
[350553794,1737960638743,-170.83409048,0.00019561,2]
[350553796,1737960638752,-849.89654081,0.00019562,2]
[350553798,1737960638761,-205.39016975,0.00019605,2]
[350553800,1737960638771,-500.0,0.00019605,2]
[350553802,1737960638779,-500.0,0.00019605,2]
[350553804,1737960638789,-489.79,0.00019605,2]
[350553806,1737960638798,-595.02,0.00019605,2]
[350553808,1737960638807,-500.0,0.00019605,2]
[350553810,1737960638817,-500.0,0.00019605,2]
[350553812,1737960638826,-500.0,0.00019605,2]
[350553814,1737960638835,-500.0,0.00019605,2]
[350553816,1737960638845,-506.93131859,0.00019605,2]
[350553818,1737960638854,-500.0,0.00019607,2]
[350553820,1737960638863,-500.0,0.00019607,2]
[350553822,1737960638875,-500.0,0.00019642,2]
[350553824,1737960638883,-1071.49,0.00019643,2]
[350553826,1737960638892,-500.0,0.00019643,2]
[350553828,1737960638902,-500.0,0.00019643,2]
[350553830,1737960638911,-500.0,0.00019643,2]
[350553832,1737960638921,-500.0,0.00019643,2]
[350553834,1737960638930,-500.0,0.00019643,2]
[350553836,1737960638939,-579.34,0.00019643,2]
[350553838,1737960638948,-500.0,0.00019643,2]
[350553840,1737960638958,-1012.36,0.00019643,2]
[350553842,1737960638967,-500.0,0.00019644,2]
[350553844,1737960638976,-4996.77,0.00019644,2]
[350553847,1737960638985,-500.0,0.00019644,2]
[350553849,1737960638995,-1633.9,0.00019644,2]
[350553851,1737960639004,-513.8,0.00019644,2]
[350553853,1737960639014,-500.0,0.00019644,2]
[350553855,1737960639023,-500.0,0.00019686,2]
[350553857,1737960639032,-500.0,0.00019742,2]
[350553859,1737960639041,-500.0,0.00019742,2]
[350553861,1737960639050,-500.0,0.00019742,2]
[350553863,1737960639059,-500.0,0.00019742,2]
[350553865,1737960639068,-500.0,0.00019742,2]
[350553867,1737960639077,-500.0,0.00019744,2]
[350553869,1737960639087,-500.0,0.00019779,2]
[350553871,1737960639096,-1071.49,0.0001978,2]
[350553873,1737960639105,-500.0,0.0001978,2]
[350553875,1737960639115,-500.0,0.0001978,2]
[350553877,1737960639125,-514.99047836,0.0001978,2]
[350553879,1737960639135,-500.0,0.0001978,2]
[350553881,1737960639144,-500.0,0.0001978,2]
[350553883,1737960639155,-579.34,0.0001978,2]
[350553885,1737960639164,-500.0,0.0001978,2]
[350553887,1737960639173,-1012.36,0.0001978,2]
[350553889,1737960639183,-305.82595114,0.0001978,2]
[350553891,1737960639192,-500.0,0.00019781,2]
[350553893,1737960639203,-4996.77,0.00019781,2]
[350553894,1737960639212,-500.0,0.00019781,2]
[350553897,1737960639222,-1633.9,0.00019781,2]
[350553898,1737960639232,-500.0,0.00019781,2]
[350553900,1737960639242,-500.0,0.00019879,2]
[350553902,1737960639252,-500.0,0.00019879,2]
[350553904,1737960639262,-500.0,0.00019879,2]
[350553906,1737960639271,-300.0,0.000199,8]
[350553908,1737960639281,-170.08,0.00019916,2]
[350553910,1737960639291,-1071.49,0.00019917,2]
[350553913,1737960639301,-500.0,0.00019917,2]
[350553915,1737960639311,-500.0,0.00019917,2]
[350553917,1737960639321,-500.0,0.00019917,2]
[350553919,1737960639330,-500.0,0.00019917,2]
[350553921,1737960639339,-579.34,0.00019917,2]
[350553923,1737960639348,-500.0,0.00019917,2]
[350553924,1737960639358,-1012.36,0.00019917,2]
[350553927,1737960639368,-500.0,0.00019918,2]
[350553929,1737960639381,-4996.77,0.00019918,2]
[350553930,1737960639391,-500.0,0.00019918,2]
[350553932,1737960639401,-1633.9,0.00019918,2]
[350553945,1737960639512,-500.0,0.00019918,2]
[350553947,1737960639522,-1000.0,0.0002,20]
[350553949,1737960639532,-500.0,0.00020016,2]
[350553951,1737960639542,-500.0,0.00020016,2]
[350553953,1737960639551,-510.37,0.00020016,2]
[350553955,1737960639561,-1071.49,0.00020054,2]
[350553958,1737960639572,-500.0,0.00020054,2]
[350553960,1737960639581,-500.0,0.00020054,2]
[350553962,1737960639590,-500.0,0.00020054,2]
[350553964,1737960639600,-500.0,0.00020054,2]
[350553966,1737960639610,-579.34,0.00020054,2]
[350553968,1737960639619,-172.86,0.00020054,2]
[350553970,1737960639632,-1012.36,0.00020054,2]
[350553972,1737960639641,-500.0,0.00020055,2]
[350553973,1737960639651,-4996.77,0.00020055,2]
[350553976,1737960639660,-534.15,0.00020055,2]
[350553977,1737960639670,-1633.9,0.00020055,2]
[350553980,1737960639679,-500.0,0.00020055,2]
[350553982,1737960639688,-420.0,0.00020079,2]
[350553983,1737960639698,-500.0,0.00020153,2]
[350553986,1737960639707,-1071.49,0.00020191,2]
[350553988,1737960639717,-500.0,0.00020191,2]
[350553990,1737960639727,-500.0,0.00020191,2]
[350553992,1737960639736,-500.0,0.00020191,2]
[350553994,1737960639746,-500.0,0.00020191,2]
[350553996,1737960639755,-579.34,0.00020191,2]
[350553998,1737960639764,-1012.36,0.00020191,2]
[350553999,1737960639773,-500.0,0.00020192,2]
[350554001,1737960639783,-4996.77,0.00020192,2]
[350554003,1737960639792,-1633.9,0.00020192,2]
[350554005,1737960639802,-500.0,0.00020192,2]
[350554007,1737960639811,-500.0,0.0002029,2]
[350554010,1737960639821,-1071.49,0.00020328,2]
[350554013,1737960639831,-500.0,0.00020328,2]
[350554015,1737960639841,-500.0,0.00020328,2]
[350554018,1737960639850,-453.77,0.00020328,2]
[350554019,1737960639860,-500.0,0.00020328,2]
[350554021,1737960639870,-579.34,0.00020328,2]
[350554023,1737960639881,-1012.36,0.00020328,2]
[350554026,1737960639890,-500.0,0.00020329,2]
[350554027,1737960639899,-4996.77,0.00020329,2]
[350554029,1737960639908,-1633.9,0.00020329,2]
[350554031,1737960639918,-500.0,0.00020329,2]
[350554033,1737960639927,-500.0,0.00020427,2]
[350554035,1737960639937,-228.561413,0.00020447,2]
[350554037,1737960639946,-160.0,0.00020456,3]
[350554039,1737960639955,-1071.49,0.00020465,2]
[350554041,1737960639965,-500.0,0.00020465,2]
[350554045,1737960639975,-500.0,0.00020465,2]
[350554049,1737960639985,-500.0,0.00020465,2]
[350554053,1737960639994,-579.34,0.00020465,2]
[350554056,1737960640004,-1012.36,0.00020465,2]
[350554058,1737960640013,-220.69,0.00020466,2]
[350554060,1737960640024,-4996.77,0.00020466,2]
[350554062,1737960640034,-1633.9,0.00020466,2]
[350554064,1737960640043,-500.0,0.00020466,2]
[350554066,1737960640052,-170.83409048,0.00020537,2]
[350554068,1737960640062,-500.0,0.00020564,2]
[350554070,1737960640071,-151.0,0.00020565,2]
[350554072,1737960640081,-1071.49,0.00020602,2]
[350554074,1737960640091,-500.0,0.00020602,2]
[350554076,1737960640100,-500.0,0.00020602,2]
[350554078,1737960640110,-500.0,0.00020602,2]
[350554080,1737960640120,-579.34,0.00020602,2]
[350554082,1737960640130,-1012.36,0.00020602,2]
[350554084,1737960640140,-4996.77,0.00020603,2]
[350554086,1737960640151,-1633.9,0.00020603,2]
[350554088,1737960640162,-414.77,0.00020603,2]
[350554090,1737960640173,-436.83,0.000207,2]
[350554092,1737960640182,-500.0,0.00020701,2]
[350554094,1737960640192,-1604.62,0.00020729,3]
[350554096,1737960640202,-1071.49,0.00020739,2]
[350554098,1737960640211,-500.0,0.00020739,2]
[350554100,1737960640221,-397.69,0.00020739,2]
[350554102,1737960640231,-174.85665823,0.00020739,2]